[Event "GER-ch Youth U16 2019"]
[Site "Willingen"]
[Date "2019.06.12"]
[Round "5.6"]
[White "Post, Hugo"]
[Black "Fromm, Marius"]
[Result "1-0"]
[ECO "C84"]
[WhiteElo "2113"]
[BlackElo "2038"]
[Annotator "NA"]
[PlyCount "139"]
[EventDate "2019.06.07"]
[EventType "swiss"]
[EventRounds "9"]
[EventCountry "GER"]
[SourceTitle "playchess.com"]
[Source "ChessBase"]
[SourceQuality "1"]
[TimeControl "40/5400+30:1800+30"]

1. e4 {[%emt 0:00:00]} e5 {[%emt 0:00:00]} 2. Nf3 {[%emt 0:00:00]} Nc6 {[%emt 0:00:00]} 3. Bb5 {[%emt 0:00:00]} a6 {[%emt 0:00:00]} 4. Ba4 {[%emt 0:00:00]} Nf6 {[%emt 0:00:00]} 5. O-O {[%emt 0:00:08]} Be7 {[%emt 0:00:00]} 6. d3 {[%emt 0:00:09]} b5 {[%emt 0:00:00]} 7. Bb3 {[%emt 0:00:06]} d6 {[%emt 0:00:08]} 8. a4 {[%emt 0:00:25]} Bd7 {[%emt 0:00:55]} 9. c3 {[%emt 0:00:46]} O-O {[%emt 0:01:22]} 10. Nbd2 {[%emt 0:02:19]} Na5 {[%emt 0:07:16]} 11. Bc2 {[%emt 0:00:17]} c5 {[%emt 0:00:17]} 12. Re1 {[%emt 0:03:00]} Nc6 {[%emt 0:04:50]} 13. Nf1 {[%emt 0:02:00]} h6 {[%emt 0:01:36]} 14. h3 {[%emt 0:01:33]} Re8 {[%emt 0:01:01]} 15. Ne3 {[%emt 0:01:46]} Bf8 {[%emt 0:01:14]} 16. Nh2 {[%emt 0:00:57]} Be6 {[%emt 0:16:04]} 17. Nhg4 {[%emt 0:04:40]} Nxg4 {[%emt 0:07:03]} 18. hxg4 {[%emt 0:00:06]} Ne7 {[%emt 0:02:48]} 19. Nf5 {[%emt 0:05:28]} Ng6 {[%emt 0:04:48]} 20. Qf3 {[%emt 0:05:50]} d5 {[%emt 0:02:10]} 21. Qh3 {[%emt 0:05:06]} d4 {[%emt 0:07:00]} 22. g3 {[%emt 0:32:11]} dxc3 {[%emt 0:04:15]} 23. bxc3 {[%emt 0:00:07]} b4 {[%emt 0:00:39]} 24. g5 {[%emt 0:05:51]} hxg5 {[%emt 0:09:12]} 25. Kg2 {[%emt 0:01:31]} b3 {[%emt 0:05:45]} 26. Bb1 {[%emt 0:16:02]} Rb8 {[%emt 0:08:03]} 27. Bb2 {[%emt 0:07:23]} Bxf5 {[%emt 0:03:17]} 28. exf5 {[%emt 0:00:03]} Qd5+ {[%emt 0:00:13]} 29. f3 {[%emt 0:00:16]} g4 {[%emt 0:05:11]} 30. Qxg4 {[%emt 0:00:15]} Ne7 {[%emt 0:00:46]} 31. c4 {[%emt 0:00:56]} Qd7 {[%emt 0:00:34]} 32. d4 {[%emt 0:01:54]} exd4 {[%emt 0:00:07]} 33. Be4 {[%emt 0:00:41]} g6 {[%emt 0:02:28]} 34. fxg6 {[%emt 0:00:59]} Qxg4 {[%emt 0:00:04]} 35. gxf7+ {[%emt 0:00:02]} Kxf7 {[%emt 0:00:07]} 36. fxg4 {[%emt 0:00:02]} Ng6 {[%emt 0:02:03]} 37. Bc6 {[%emt 0:00:52]} Re5 {[%emt 0:01:26]} 38. Rf1+ {[%emt 0:00:35]} Kg7 {[%emt 0:00:29]} 39. Rf2 {[%emt 0:00:40]} Bd6 {[%emt 0:00:38]} 40. Raf1 {[%emt 0:01:44]} Rf8 {[%emt 0:00:49]} 41. Bc1 {[%emt 0:04:57]} Rxf2+ {[%emt 0:02:41]} 42. Kxf2 {[%emt 0:00:06]} Re6 {[%emt 0:08:20]} 43. Bd7 {[%emt 0:04:33]} Rf6+ {[%emt 0:00:31]} 44. Bf5 {[%emt 0:00:14]} Ne5 {[%emt 0:01:38]} 45. Bg5 {[%emt 0:00:50]} Rf8 {[%emt 0:03:40]} 46. Rb1 {[%emt 0:14:27]} Rb8 {[%emt 0:12:17]} 47. Rh1 {[%emt 0:00:41]} Ng6 {[%emt 0:01:36]} 48. Rh6 {[%emt 0:01:06]} Ne7 {[%emt 0:02:57]} 49. Rh7+ {[%emt 0:06:35]} Kg8 {[%emt 0:00:11]} 50. Bxe7 {[%emt 0:00:30]} Bxe7 {[%emt 0:00:11]} 51. Rxe7 {[%emt 0:00:05]} Rb4 {[%emt 0:01:38]} 52. Be4 {[%emt 0:01:08]} b2 {[%emt 0:00:24]} 53. Bb1 {[%emt 0:00:15]} Rxc4 {[%emt 0:00:44]} 54. Rb7 {[%emt 0:00:11]} Rxa4 {[%emt 0:00:23]} 55. Rxb2 {[%emt 0:00:01]} c4 {[%emt 0:02:17]} 56. Ke2 {[%emt 0:00:08]} Kg7 {[%emt 0:01:20]} 57. Rd2 {[%emt 0:01:16]} d3+ {[%emt 0:00:45]} 58. Kd1 {[%emt 0:00:13]} Ra1 {[%emt 0:00:18]} 59. Kc1 {[%emt 0:00:09]} a5 {[%emt 0:00:52]} 60. Ra2 {[%emt 0:00:27]} d2+ {[%emt 0:01:29]} 61. Rxd2 {[%emt 0:00:02]} Kf6 {[%emt 0:00:20]} 62. Kb2 {[%emt 0:01:32]} Ra4 {[%emt 0:00:30]} 63. Bc2 {[%emt 0:00:08]} Rb4+ {[%emt 0:00:29]} 64. Kc3 {[%emt 0:00:04]} Kg5 {[%emt 0:00:20]} 65. Rd4 {[%emt 0:00:06]} Rb8 {[%emt 0:00:49]} 66. Rxc4 {[%emt 0:00:09]} Re8 {[%emt 0:01:05]} 67. Bf5 {[%emt 0:00:29]} Re3+ {[%emt 0:00:09]} 68. Kb2 {[%emt 0:00:08]} Re5 {[%emt 0:00:33]} 69. Ka3 {[%emt 0:00:10] normal} Rb5 {[%emt 0:00:41]} 70. Rc6 {[%emt 0:00:25] normal} 1-0

[Event "GER-ch Youth U16 2019"]
[Site "Willingen"]
[Date "2019.06.12"]
[Round "5.7"]
[White "Rietschel, Tilo"]
[Black "Trifan, Andrei Ioan"]
[Result "1/2-1/2"]
[ECO "C84"]
[WhiteElo "2005"]
[BlackElo "2268"]
[Annotator "NA"]
[PlyCount "138"]
[EventDate "2019.06.07"]
[EventType "swiss"]
[EventRounds "9"]
[EventCountry "GER"]
[SourceTitle "playchess.com"]
[Source "ChessBase"]
[SourceQuality "1"]
[TimeControl "40/5400+30:1800+30"]

1. e4 {[%emt 0:00:00]} e5 {[%emt 0:00:03]} 2. Nf3 {[%emt 0:00:00]} Nc6 {[%emt 0:00:05]} 3. Bb5 {[%emt 0:00:00]} a6 {[%emt 0:00:24]} 4. Ba4 {[%emt 0:00:00]} Nf6 {[%emt 0:00:22]} 5. O-O {[%emt 0:00:00]} Be7 {[%emt 0:00:53]} 6. d4 {[%emt 0:00:00]} exd4 {[%emt 0:00:35]} 7. e5 {[%emt 0:00:06]} Ne4 {[%emt 0:01:17]} 8. Nxd4 {[%emt 0:00:07]} Nxd4 {[%emt 0:01:10]} 9. Qxd4 {[%emt 0:00:07]} Nc5 {[%emt 0:00:15]} 10. Nc3 {[%emt 0:00:09]} O-O {[%emt 0:02:43]} 11. Nd5 {[%emt 0:04:24]} Re8 {[%emt 0:03:56]} 12. Re1 {[%emt 0:09:14]} Bf8 {[%emt 0:16:00]} 13. h4 {[%emt 0:15:21]} c6 {[%emt 0:16:22]} 14. Nc3 {[%emt 0:13:18]} b5 {[%emt 0:07:03]} 15. Bb3 {[%emt 0:00:20]} d5 {[%emt 0:01:12]} 16. Bg5 {[%emt 0:02:17]} Qc7 {[%emt 0:04:34]} 17. Bf4 {[%emt 0:08:29]} Be6 {[%emt 0:03:15]} 18. Nd1 {[%emt 0:12:51]} Nxb3 {[%emt 0:06:23]} 19. axb3 {[%emt 0:02:40]} c5 {[%emt 0:00:11]} 20. Qd2 {[%emt 0:03:24]} d4 {[%emt 0:02:59]} 21. b4 {[%emt 0:01:43]} cxb4 {[%emt 0:02:42]} 22. Qxd4 {[%emt 0:02:37]} Qxc2 {[%emt 0:00:05]} 23. Ne3 {[%emt 0:00:19]} Qc6 {[%emt 0:01:09]} 24. Rec1 {[%emt 0:01:15]} Qb7 {[%emt 0:00:51]} 25. Rd1 {[%emt 0:04:21]} Be7 {[%emt 0:06:19]} 26. Bg5 {[%emt 0:00:21]} h6 {[%emt 0:01:38]} 27. Bxe7 {[%emt 0:00:51]} Qxe7 {[%emt 0:01:30]} 28. Qb6 {[%emt 0:03:49]} Bb3 {[%emt 0:04:14]} 29. Rd4 {[%emt 0:04:34]} Qxe5 {[%emt 0:06:25]} 30. Rxb4 {[%emt 0:01:32]} Qxb2 {[%emt 0:01:46]} 31. Rxa6 {[%emt 0:00:56]} Qc1+ {[%emt 0:00:16]} 32. Kh2 {[%emt 0:00:21]} Bc4 {[%emt 0:00:29]} 33. Rxa8 {[%emt 0:02:12]} Rxa8 {[%emt 0:00:03]} 34. Nxc4 {[%emt 0:02:26]} bxc4 {[%emt 0:00:02]} 35. Qc5 {[%emt 0:00:25]} Qf4+ {[%emt 0:03:44]} 36. g3 {[%emt 0:00:05]} Qf3 {[%emt 0:00:19]} 37. Rxc4 {[%emt 0:00:27]} Ra1 {[%emt 0:00:12]} 38. Rc1 {[%emt 0:00:56]} Rxc1 {[%emt 0:00:08]} 39. Qxc1 {[%emt 0:00:04]} Qxf2+ {[%emt 0:00:05]} 40. Kh3 {[%emt 0:00:04]} Kh7 {[%emt 0:02:58]} 41. Qc6 {[%emt 0:13:56]} h5 {[%emt 0:03:07]} 42. Qb7 {[%emt 0:05:28]} Qg1 {[%emt 0:01:06]} 43. Qe4+ {[%emt 0:00:43]} g6 {[%emt 0:00:20]} 44. Qf3 {[%emt 0:02:08]} Kg8 {[%emt 0:00:29]} 45. Qa8+ {[%emt 0:01:27]} Kg7 {[%emt 0:00:01]} 46. Qb7 {[%emt 0:00:15]} Qf1+ {[%emt 0:02:44]} 47. Kh2 {[%emt 0:00:07]} Qf2+ {[%emt 0:00:02]} 48. Kh3 {[%emt 0:00:06]} Qf1+ {[%emt 0:01:28]} 49. Kh2 {[%emt 0:00:10]} Kf6 {[%emt 0:00:03]} 50. Qc6+ {[%emt 0:00:55]} Ke5 {[%emt 0:00:15]} 51. Qc5+ {[%emt 0:03:01]} Ke4 {[%emt 0:00:06]} 52. Qc6+ {[%emt 0:00:57]} Ke3 {[%emt 0:00:52]} 53. Qc5+ {[%emt 0:01:10]} Kd2 {[%emt 0:01:43]} 54. Qb4+ {[%emt 0:00:11]} Kc2 {[%emt 0:00:24]} 55. Qa4+ {[%emt 0:00:19]} Kc3 {[%emt 0:00:12]} 56. Qa3+ {[%emt 0:00:23]} Kd4 {[%emt 0:00:36]} 57. Qd6+ {[%emt 0:00:10]} Ke4 {[%emt 0:00:20]} 58. Qc6+ {[%emt 0:02:35]} Kf5 {[%emt 0:00:58]} 59. Qd5+ {[%emt 0:00:34]} Kf6 {[%emt 0:00:15]} 60. Qd4+ {[%emt 0:02:21]} Ke6 {[%emt 0:00:21]} 61. Qb6+ {[%emt 0:02:01]} Kd5 {[%emt 0:01:08]} 62. Qb7+ {[%emt 0:01:46]} Kc5 {[%emt 0:00:23]} 63. Qc7+ {[%emt 0:00:36]} Kb4 {[%emt 0:00:19]} 64. Qd6+ {[%emt 0:00:10]} Kc3 {[%emt 0:00:07]} 65. Qa3+ {[%emt 0:00:15]} Kd4 {[%emt 0:00:25]} 66. Qd6+ {[%emt 0:00:16]} Ke3 {[%emt 0:00:18]} 67. Qe5+ {[%emt 0:00:29]} Kd2 {[%emt 0:00:09]} 68. Qb2+ {[%emt 0:00:04]} Ke1 {[%emt 0:00:35]} 69. Qc3+ {[%emt 0:00:42]} Ke2 {[%emt 0:00:09] normal} 1/2-1/2

[Event "GER-ch Youth U16 2019"]
[Site "Willingen"]
[Date "2019.06.12"]
[Round "5.8"]
[White "Nguyen, Alex Dac-Vuong"]
[Black "Gutkin, Ilya"]
[Result "1-0"]
[ECO "C11"]
[WhiteElo "2287"]
[BlackElo "2041"]
[Annotator "NA"]
[PlyCount "87"]
[EventDate "2019.06.07"]
[EventType "swiss"]
[EventRounds "9"]
[EventCountry "GER"]
[SourceTitle "playchess.com"]
[Source "ChessBase"]
[SourceQuality "1"]
[TimeControl "40/5400+30:1800+30"]

1. e4 {[%emt 0:00:00]} e6 {[%emt 0:00:00]} 2. d4 {[%emt 0:00:00]} d5 {[%emt 0:00:00]} 3. Nc3 {[%emt 0:00:00]} Nf6 {[%emt 0:00:42]} 4. e5 {[%emt 0:00:03]} Nfd7 {[%emt 0:00:05]} 5. f4 {[%emt 0:00:42]} c5 {[%emt 0:00:08]} 6. Nf3 {[%emt 0:00:11]} Qb6 {[%emt 0:00:57]} 7. Ne2 {[%emt 0:02:48]} Nc6 {[%emt 0:03:17]} 8. c3 {[%emt 0:00:09]} Be7 {[%emt 0:01:46]} 9. g3 {[%emt 0:00:53]} O-O {[%emt 0:10:22]} 10. Bh3 {[%emt 0:10:50]} cxd4 {[%emt 0:03:58]} 11. cxd4 {[%emt 0:02:52]} f5 {[%emt 0:03:43]} 12. O-O {[%emt 0:03:02]} Rd8 {[%emt 0:05:28]} 13. Nc3 {[%emt 0:06:46]} Nf8 {[%emt 0:02:09]} 14. Rf2 {[%emt 0:02:07]} g6 {[%emt 0:07:07]} 15. Be3 {[%emt 0:03:21]} Bd7 {[%emt 0:02:06]} 16. Na4 {[%emt 0:13:02]} Qc7 {[%emt 0:10:43]} 17. Rc1 {[%emt 0:00:53]} b6 {[%emt 0:02:32]} 18. a3 {[%emt 0:03:53]} Qb7 {[%emt 0:01:09]} 19. Bd2 {[%emt 0:05:44]} Rdc8 {[%emt 0:07:01]} 20. Bf1 {[%emt 0:01:26]} Rc7 {[%emt 0:07:34]} 21. b4 {[%emt 0:08:29]} a5 {[%emt 0:07:17]} 22. b5 {[%emt 0:00:25]} Na7 {[%emt 0:02:53]} 23. Rxc7 {[%emt 0:01:34]} Qxc7 {[%emt 0:00:04]} 24. Qb3 {[%emt 0:00:06]} Rc8 {[%emt 0:06:41]} 25. Bd3 {[%emt 0:00:18]} Qb7 {[%emt 0:01:01]} 26. h3 {[%emt 0:01:06]} Rc7 {[%emt 0:03:37]} 27. Rg2 {[%emt 0:00:42]} Nc8 {[%emt 0:00:23]} 28. Kf2 {[%emt 0:03:28]} Be8 {[%emt 0:01:24]} 29. Rg1 {[%emt 0:00:24]} Kh8 {[%emt 0:00:55]} 30. Nb2 {[%emt 0:00:31]} Bd8 {[%emt 0:00:56]} 31. a4 {[%emt 0:00:07]} Rg7 {[%emt 0:01:46]} 32. g4 {[%emt 0:02:28]} Bf7 {[%emt 0:05:08]} 33. Nd1 {[%emt 0:00:10]} Ne7 {[%emt 0:00:35]} 34. Ne3 {[%emt 0:00:19]} Rg8 {[%emt 0:00:40]} 35. Ke2 {[%emt 0:01:28]} Rg7 {[%emt 0:00:25]} 36. Be1 {[%emt 0:01:53]} Qd7 {[%emt 0:00:46]} 37. Bh4 {[%emt 0:02:53]} Ng8 {[%emt 0:00:25]} 38. Bf2 {[%emt 0:04:55]} Ne7 {[%emt 0:00:13]} 39. Qc2 {[%emt 0:00:14]} Qc7 {[%emt 0:00:51]} 40. Qxc7 {[%emt 0:02:00]} Bxc7 {[%emt 0:00:05]} 41. Bh4 {[%emt 0:30:07]} Ng8 {[%emt 0:03:09]} 42. Bf6 {[%emt 0:00:00]} Nd7 {[%emt 0:08:29]} 43. Bxg7+ {[%emt 0:00:00] normal} Kxg7 {[%emt 0:00:05]} 44. gxf5 1-0

[Event "GER-ch Youth U16 2019"]
[Site "Willingen"]
[Date "2019.06.12"]
[Round "5.9"]
[White "Boder, Jan"]
[Black "Hommel, Niclas"]
[Result "1/2-1/2"]
[ECO "B51"]
[WhiteElo "2123"]
[BlackElo "1953"]
[Annotator "NA"]
[PlyCount "77"]
[EventDate "2019.06.07"]
[EventType "swiss"]
[EventRounds "9"]
[EventCountry "GER"]
[SourceTitle "playchess.com"]
[Source "ChessBase"]
[SourceQuality "1"]
[TimeControl "40/5400+30:1800+30"]

1. e4 {[%emt 0:00:00]} c5 {[%emt 0:00:00]} 2. Nf3 {[%emt 0:00:00]} d6 {[%emt 0:00:00]} 3. Bb5+ {[%emt 0:00:00]} Nd7 {[%emt 0:00:00]} 4. O-O {[%emt 0:00:00]} a6 {[%emt 0:00:00]} 5. Bd3 {[%emt 0:00:00]} Ngf6 {[%emt 0:00:31]} 6. Re1 {[%emt 0:00:05]} e6 {[%emt 0:00:37]} 7. c3 {[%emt 0:02:24]} Be7 {[%emt 0:00:59]} 8. Bc2 {[%emt 0:00:17]} b5 {[%emt 0:02:14]} 9. d4 {[%emt 0:02:04]} Bb7 {[%emt 0:01:30]} 10. Nbd2 {[%emt 0:18:18]} cxd4 {[%emt 0:15:28]} 11. cxd4 {[%emt 0:01:45]} Rc8 {[%emt 0:06:14]} 12. a4 {[%emt 0:07:01]} b4 {[%emt 0:09:46]} 13. Bd3 {[%emt 0:05:06]} O-O {[%emt 0:06:29]} 14. b3 {[%emt 0:01:28]} e5 {[%emt 0:04:43]} 15. d5 {[%emt 0:03:18]} Nc5 {[%emt 0:00:13]} 16. Nc4 {[%emt 0:01:33]} a5 {[%emt 0:02:09]} 17. Bc2 {[%emt 0:02:45]} Ba6 {[%emt 0:01:00]} 18. Nfd2 {[%emt 0:00:24]} Re8 {[%emt 0:03:09]} 19. Bb2 {[%emt 0:00:55]} Nfd7 {[%emt 0:08:46]} 20. g3 {[%emt 0:24:28]} Nb6 {[%emt 0:09:54]} 21. Nxa5 {[%emt 0:07:58]} Nbxa4 {[%emt 0:00:11]} 22. bxa4 {[%emt 0:00:54]} Qxa5 {[%emt 0:00:04]} 23. Nb3 {[%emt 0:00:15]} Nxb3 {[%emt 0:09:44]} 24. Bxb3 {[%emt 0:00:05]} Bd8 {[%emt 0:02:04]} 25. Rc1 {[%emt 0:03:09]} Bb6 {[%emt 0:00:22]} 26. Qd2 {[%emt 0:00:19]} Bc5 {[%emt 0:06:39]} 27. Kg2 {[%emt 0:00:25]} Rc7 {[%emt 0:00:29]} 28. f4 {[%emt 0:00:39]} f6 {[%emt 0:00:10]} 29. h3 {[%emt 0:01:13]} Kh8 {[%emt 0:00:22]} 30. g4 {[%emt 0:00:34]} Rec8 {[%emt 0:02:43]} 31. g5 {[%emt 0:01:22]} Rf8 {[%emt 0:03:24]} 32. f5 {[%emt 0:00:12]} fxg5 {[%emt 0:01:31]} 33. Qxg5 {[%emt 0:08:00]} g6 {[%emt 0:00:41]} 34. Kh2 {[%emt 0:03:31]} gxf5 {[%emt 0:00:41]} 35. exf5 {[%emt 0:00:32]} Rg7 {[%emt 0:00:19]} 36. Qh5 {[%emt 0:00:56]} Rfg8 37. Rc2 Bd3 38. Rd2 Rg5 39. Qf3 {normal} 1/2-1/2

[Event "GER-ch Youth U16 2019"]
[Site "Willingen"]
[Date "2019.06.12"]
[Round "5.10"]
[White "Burian, Simon"]
[Black "Kopylov, Daniel"]
[Result "0-1"]
[ECO "B63"]
[WhiteElo "2001"]
[BlackElo "2263"]
[Annotator "NA"]
[PlyCount "88"]
[EventDate "2019.06.07"]
[EventType "swiss"]
[EventRounds "9"]
[EventCountry "GER"]
[SourceTitle "playchess.com"]
[Source "ChessBase"]
[SourceQuality "1"]
[TimeControl "40/5400+30:1800+30"]

1. e4 {[%emt 0:00:00]} c5 {[%emt 0:00:00]} 2. Nf3 {[%emt 0:00:00]} d6 {[%emt 0:00:00]} 3. d4 {[%emt 0:00:00]} cxd4 {[%emt 0:00:00]} 4. Nxd4 {[%emt 0:00:02]} Nf6 {[%emt 0:00:08]} 5. Nc3 {[%emt 0:00:14]} Nc6 {[%emt 0:00:11]} 6. Bg5 {[%emt 0:00:48]} e6 {[%emt 0:00:32]} 7. Qd2 {[%emt 0:01:30]} Be7 {[%emt 0:00:10]} 8. O-O-O {[%emt 0:00:35]} Nxd4 {[%emt 0:00:13]} 9. Qxd4 {[%emt 0:00:07]} O-O {[%emt 0:00:13]} 10. f4 {[%emt 0:00:52]} Qa5 {[%emt 0:00:31]} 11. e5 {[%emt 0:00:30]} dxe5 {[%emt 0:01:07]} 12. Qxe5 {[%emt 0:00:12]} Qxe5 {[%emt 0:00:23]} 13. fxe5 {[%emt 0:00:08]} Nd5 {[%emt 0:00:26]} 14. Bxe7 {[%emt 0:00:06]} Nxe7 {[%emt 0:00:07]} 15. Bd3 {[%emt 0:00:13]} b6 {[%emt 0:01:54]} 16. Rhe1 {[%emt 0:07:16]} Ng6 {[%emt 0:13:20]} 17. Bxg6 {[%emt 0:03:42]} hxg6 {[%emt 0:01:59]} 18. g3 {[%emt 0:03:55]} Bb7 {[%emt 0:06:54]} 19. Rd6 {[%emt 0:05:05]} Rfc8 {[%emt 0:07:03]} 20. Re3 {[%emt 0:07:11]} g5 {[%emt 0:05:52]} 21. b4 {[%emt 0:07:56]} Rc4 {[%emt 0:04:09]} 22. a3 {[%emt 0:00:21]} Rac8 {[%emt 0:00:17]} 23. Kb2 {[%emt 0:01:00]} g4 {[%emt 0:00:40]} 24. Rd7 {[%emt 0:02:41]} R8c7 {[%emt 0:03:46]} 25. Rxc7 {[%emt 0:00:27]} Rxc7 {[%emt 0:00:02]} 26. Rd3 {[%emt 0:06:05]} Bf3 {[%emt 0:07:03]} 27. Kb3 {[%emt 0:05:51]} f6 {[%emt 0:02:14]} 28. Rd8+ {[%emt 0:02:19]} Kf7 {[%emt 0:07:58]} 29. Nb5 {[%emt 0:02:03]} Re7 {[%emt 0:01:01]} 30. exf6 {[%emt 0:02:28]} gxf6 {[%emt 0:01:58]} 31. Rc8 {[%emt 0:01:55]} e5 {[%emt 0:06:00]} 32. Rc7 {[%emt 0:05:14]} Rxc7 {[%emt 0:01:13]} 33. Nxc7 {[%emt 0:00:06]} Bc6 {[%emt 0:00:42]} 34. Kc4 {[%emt 0:00:46]} f5 {[%emt 0:01:41]} 35. b5 {[%emt 0:01:13]} Bb7 {[%emt 0:01:19]} 36. Nd5 {[%emt 0:02:17]} Bxd5+ {[%emt 0:01:30]} 37. Kxd5 {[%emt 0:00:05]} f4 {[%emt 0:00:08]} 38. gxf4 {[%emt 0:00:28]} exf4 {[%emt 0:00:07]} 39. Ke4 {[%emt 0:00:11]} f3 {[%emt 0:00:27]} 40. Ke3 {[%emt 0:00:04]} Ke6 {[%emt 0:00:15]} 41. h3 {[%emt 0:31:47]} gxh3 {[%emt 0:30:10]} 42. Kxf3 {[%emt 0:00:05]} Kd5 {[%emt 0:00:17]} 43. Kg3 {[%emt 0:00:05]} Kc4 {[%emt 0:00:23]} 44. Kxh3 {[%emt 0:00:06]} Kxb5 {[%emt 0:00:18] normal} 0-1

[Event "GER-ch Youth U16 2019"]
[Site "Willingen"]
[Date "2019.06.12"]
[Round "5.11"]
[White "Liebold, Aaron"]
[Black "Huber, Benedikt"]
[Result "1-0"]
[ECO "B40"]
[WhiteElo "1870"]
[BlackElo "2051"]
[Annotator "NA"]
[PlyCount "50"]
[EventDate "2019.06.07"]
[EventType "swiss"]
[EventRounds "9"]
[EventCountry "GER"]
[SourceTitle "playchess.com"]
[Source "ChessBase"]
[SourceQuality "1"]
[TimeControl "40/5400+30:1800+30"]

1. e4 {[%emt 0:00:00]} c5 {[%emt 0:00:00]} 2. Nf3 {[%emt 0:00:00]} e6 {[%emt 0:00:00]} 3. c4 {[%emt 0:00:38]} Nc6 {[%emt 0:01:09]} 4. Nc3 {[%emt 0:00:08]} Nf6 {[%emt 0:02:07]} 5. Be2 {[%emt 0:01:14]} d5 {[%emt 0:04:03]} 6. exd5 {[%emt 0:02:01]} exd5 {[%emt 0:00:18]} 7. d4 {[%emt 0:00:32]} cxd4 {[%emt 0:05:00]} 8. Nxd4 {[%emt 0:04:57]} Bb4 {[%emt 0:00:40]} 9. O-O {[%emt 0:02:01]} h6 {[%emt 0:12:11]} 10. Nxd5 {[%emt 0:05:57]} Nxd5 {[%emt 0:04:55]} 11. Nxc6 {[%emt 0:04:35]} bxc6 {[%emt 0:08:08]} 12. cxd5 {[%emt 0:00:24]} O-O {[%emt 0:00:26]} 13. dxc6 {[%emt 0:02:03]} Qb6 {[%emt 0:00:10]} 14. Be3 {[%emt 0:02:46]} Bc5 {[%emt 0:01:24]} 15. Bxc5 {[%emt 0:04:36]} Qxc5 {[%emt 0:01:16]} 16. Bf3 {[%emt 0:05:16]} Ba6 {[%emt 0:01:54]} 17. Qc1 {[%emt 0:02:48]} Qa5 {[%emt 0:04:08]} 18. Rd1 {[%emt 0:01:49]} Rac8 {[%emt 0:01:14]} 19. a3 {[%emt 0:02:35]} Bb5 {[%emt 0:04:55]} 20. a4 {[%emt 0:03:04]} Ba6 {[%emt 0:07:33]} 21. Rd4 {[%emt 0:04:56]} Qb6 {[%emt 0:01:51]} 22. Qc3 {[%emt 0:01:12]} Rfe8 {[%emt 0:01:09]} 23. Rg4 {[%emt 0:05:55]} g6 {[%emt 0:00:31]} 24. Bd5 {[%emt 0:02:09]} Kf8 {[%emt 0:03:04]} 25. Qh8+ {[%emt 0:05:14]} Ke7 {[%emt 0:00:13] normal} 1-0

[Event "GER-ch Youth U16 2019"]
[Site "Willingen"]
[Date "2019.06.12"]
[Round "5.12"]
[White "Pahl, Erik"]
[Black "Roehr, Tobias"]
[Result "1/2-1/2"]
[ECO "B48"]
[WhiteElo "2113"]
[BlackElo "2208"]
[Annotator "NA"]
[PlyCount "87"]
[EventDate "2019.06.07"]
[EventType "swiss"]
[EventRounds "9"]
[EventCountry "GER"]
[SourceTitle "playchess.com"]
[Source "ChessBase"]
[SourceQuality "1"]
[TimeControl "40/5400+30:1800+30"]

1. e4 {[%emt 0:00:00]} c5 {[%emt 0:00:00]} 2. Nf3 {[%emt 0:00:00]} e6 {[%emt 0:00:00]} 3. d4 {[%emt 0:00:00]} cxd4 {[%emt 0:00:00]} 4. Nxd4 {[%emt 0:00:00]} Nc6 {[%emt 0:00:00]} 5. Nc3 {[%emt 0:00:00]} Qc7 {[%emt 0:00:00]} 6. Be3 {[%emt 0:00:00]} a6 {[%emt 0:00:00]} 7. Qf3 {[%emt 0:00:01]} Bd6 {[%emt 0:00:57]} 8. O-O-O {[%emt 0:01:41]} Be5 {[%emt 0:00:34]} 9. Nxc6 {[%emt 0:26:21]} bxc6 {[%emt 0:01:10]} 10. Bd4 {[%emt 0:03:07]} Nf6 {[%emt 0:01:41]} 11. Bxe5 {[%emt 0:00:42]} Qxe5 {[%emt 0:00:06]} 12. Qg3 {[%emt 0:00:05]} Qxg3 {[%emt 0:01:05]} 13. hxg3 {[%emt 0:00:06]} d5 {[%emt 0:06:02]} 14. exd5 {[%emt 0:03:49]} cxd5 {[%emt 0:01:33]} 15. Bd3 {[%emt 0:05:09]} Bb7 {[%emt 0:03:10]} 16. Rhe1 {[%emt 0:03:45]} O-O {[%emt 0:02:57]} 17. b3 {[%emt 0:02:41]} Rac8 {[%emt 0:03:52]} 18. Kb2 {[%emt 0:01:19]} g6 {[%emt 0:09:35]} 19. a4 {[%emt 0:07:16]} Nd7 {[%emt 0:12:49]} 20. Be2 {[%emt 0:07:51]} Rc7 {[%emt 0:02:52]} 21. Bf3 {[%emt 0:08:49]} Rfc8 {[%emt 0:01:59]} 22. Re3 {[%emt 0:00:41]} Nf6 {[%emt 0:13:50]} 23. Rdd3 {[%emt 0:10:58]} a5 {[%emt 0:08:42]} 24. Rd2 {[%emt 0:02:33]} Ba6 {[%emt 0:05:25]} 25. Nd1 {[%emt 0:02:08]} h5 {[%emt 0:06:18]} 26. Rc3 {[%emt 0:00:39]} Kg7 {[%emt 0:03:25]} 27. Rxc7 {[%emt 0:00:48]} Rxc7 {[%emt 0:00:04]} 28. Ne3 {[%emt 0:00:44]} g5 {[%emt 0:04:15]} 29. g4 {[%emt 0:04:54]} h4 {[%emt 0:02:44]} 30. c3 {[%emt 0:00:37]} Rb7 {[%emt 0:02:10]} 31. c4 {[%emt 0:01:15]} Rd7 {[%emt 0:00:24]} 32. cxd5 {[%emt 0:00:39]} exd5 {[%emt 0:01:45]} 33. Kc3 {[%emt 0:01:32]} Rc7+ {[%emt 0:00:46]} 34. Kb2 {[%emt 0:01:08]} Bb7 {[%emt 0:01:53]} 35. Nf5+ {[%emt 0:00:27]} Kg6 {[%emt 0:00:33]} 36. Rc2 {[%emt 0:00:19]} Rxc2+ {[%emt 0:00:51]} 37. Kxc2 {[%emt 0:00:08]} Ne4 {[%emt 0:00:34]} 38. Bxe4 {[%emt 0:00:10]} dxe4 {[%emt 0:00:07]} 39. Kc3 {[%emt 0:00:15]} e3 {[%emt 0:01:30]} 40. f3 {[%emt 0:03:58]} Kf6 {[%emt 0:02:50]} 41. Kd3 {[%emt 0:32:31]} Bd5 {[%emt 0:04:10]} 42. Nd4 {[%emt 0:00:00]} Ke5 {[%emt 0:01:58] normal} 43. Kxe3 {[%emt 0:00:00]} f6 {[%emt 0:01:52]} 44. Kd3 {[%emt 0:00:00] normal} 1/2-1/2